bitfinex-derivatives/quotes_BTCF0:USTF0_20241221
["timestamp","ask_amount","ask_price","bid_price","bid_amount"]
[1734800412996,0.0244299,97306.0,97305.0,0.001]
[1734800413184,0.051402,97305.0,97303.0,0.3608]
[1734800413383,0.051404,97302.0,97301.0,0.24510585]
[1734800413885,0.0618339,97302.0,97301.0,0.24510585]
[1734800414091,0.07058097,97302.0,97301.0,0.24510585]
[1734800414392,0.07058097,97302.0,97300.0,0.3608]
[1734800414695,0.0104299,97301.0,97300.0,0.3608]
[1734800415792,0.01919825,97301.0,97300.0,0.3608]
[1734800416090,0.051408,97295.0,97294.0,0.06415651]
[1734800416289,0.05141,97291.0,97290.0,0.24510585]
[1734800416591,0.07060825,97291.0,97289.0,0.24510585]
[1734800416796,0.03605913,97290.0,97289.0,0.24510585]
[1734800417281,0.01919825,97290.0,97289.0,0.24510585]
[1734800418096,0.01919825,97290.0,97273.0,0.3608]
[1734800418398,0.051418,97277.0,97273.0,0.3608]
[1734800418592,0.09709825,97289.0,97273.0,0.3608]
[1734800418593,0.051419,97274.0,97273.0,0.3608]
[1734800418983,0.051419,97274.0,97265.0,0.24510585]
[1734800418984,0.05142,97271.0,97265.0,0.24510585]
[1734800419186,0.051422,97267.0,97265.0,0.24510585]
[1734800420494,0.01046141,97266.0,97265.0,0.25410585]
[1734800420690,0.01046141,97266.0,97265.0,0.009]
[1734800420886,0.051429,97255.0,97254.0,0.24510585]
[1734800421192,0.06189041,97255.0,97254.0,0.24510585]
[1734800421393,0.06198988,97255.0,97254.0,0.24510585]
[1734800421693,0.051429,97255.0,97254.0,0.24510585]
[1734800421994,0.06199065,97255.0,97254.0,0.24510585]
[1734800422190,0.051429,97255.0,97254.0,0.25010585]
[1734800422494,0.060429,97255.0,97254.0,0.006]
[1734800422895,0.07072644,97255.0,97254.0,0.006]
[1734800423483,0.009,97255.0,97254.0,0.006]
[1734800423688,0.009,97255.0,97254.0,0.001]
[1734800423883,0.005,97255.0,97254.0,0.001]
[1734800424100,0.014,97255.0,97254.0,0.002]
[1734800424394,0.014,97255.0,97254.0,0.0797]
[1734800424583,0.12286398,97270.0,97254.0,0.130129]
[1734800424789,0.12286398,97270.0,97269.0,0.3608]
[1734800425184,0.051413,97285.0,97269.0,0.3608]
[1734800425389,0.06165463,97285.0,97283.0,0.3608]
[1734800425993,0.051413,97285.0,97283.0,0.3608]
[1734800426493,0.060413,97285.0,97283.0,0.3608]
[1734800427089,0.051414,97284.0,97269.0,0.3608]
[1734800427289,0.051414,97284.0,97278.0,0.3608]
[1734800427491,0.009,97285.0,97278.0,0.3608]
[1734800427694,0.051416,97280.0,97278.0,0.3608]
[1734800428692,0.001,97285.0,97263.0,0.0725]
[1734800429001,0.051416,97279.0,97278.0,0.001]
[1734800429406,0.051424,97265.0,97257.0,0.60590585]
[1734800430011,0.078,97278.0,97263.0,0.001]
[1734800430305,0.051419,97273.0,97263.0,0.001]
[1734800430699,0.01047653,97272.0,97270.0,0.3608]
[1734800430903,0.01047653,97272.0,97271.0,0.0746]
[1734800430904,0.0087043,97272.0,97271.0,0.0746]
[1734800431199,0.001,97285.0,97283.0,0.051414]
[1734800431407,0.2458935,97300.0,97284.0,0.4366]
[1734800431707,0.051406,97299.0,97287.0,0.051412]
[1734800431901,0.12286398,97298.0,97297.0,0.051407]
[1734800432101,0.12286398,97298.0,97297.0,0.412207]
[1734800432807,0.00166398,97298.0,97297.0,0.412207]
[1734800433200,0.005,97298.0,97297.0,0.412207]
[1734800433702,0.0787,97324.0,97308.0,0.051401]
[1734800433903,0.051394,97321.0,97308.0,0.412201]
[1734800435099,0.051395,97319.0,97308.0,0.412201]
[1734800435407,0.01154263,97309.0,97308.0,0.413201]
[1734800439199,0.00154148,97344.0,97308.0,0.413201]
[1734800439410,0.051387,97334.0,97331.0,0.3608]
[1734800439712,0.0763,97342.0,97331.0,0.3608]
[1734800439902,0.0763,97342.0,97341.0,0.3608]
[1734800441119,0.0773,97342.0,97341.0,0.3608]
[1734800442404,0.0773,97342.0,97341.0,0.3618]
[1734800443308,0.00154148,97344.0,97341.0,0.3618]
[1734800443623,0.00154148,97344.0,97343.0,0.051382]
[1734800445810,0.051365,97376.0,97365.0,0.05137]
[1734800446108,0.051366,97375.0,97367.0,0.3608]
[1734800446310,0.0773,97379.0,97367.0,0.3608]
[1734800446511,0.051367,97372.0,97367.0,0.3608]
[1734800446912,0.0773,97379.0,97374.0,0.051366]
[1734800447106,0.0773,97379.0,97378.0,0.3608]
[1734800448613,0.0773,97379.0,97378.0,0.3618]
[1734800449408,0.0773,97379.0,97378.0,0.3628]
[1734800449704,0.0773,97379.0,97378.0,0.002]
[1734800450118,0.0773,97379.0,97367.0,0.3608]
[1734800450413,0.3608,97371.0,97344.0,0.3608]
[1734800450621,0.7381,97379.0,97335.0,0.3608]
[1734800450622,0.051381,97346.0,97335.0,0.3608]
[1734800451012,0.36132001,97350.0,97335.0,0.3608]
[1734800451213,0.3608,97339.0,97324.0,0.24510585]
[1734800451410,0.0797,97345.0,97324.0,0.24510585]
[1734800451411,0.051392,97326.0,97324.0,0.24510585]
[1734800452208,0.051392,97326.0,97319.0,0.66643931]
[1734800452413,0.051392,97326.0,97319.0,0.3608]
[1734800452622,0.051392,97325.0,97319.0,0.3608]
[1734800453015,0.051393,97324.0,97319.0,0.3608]
[1734800453321,0.001,97326.0,97319.0,0.3608]
[1734800453514,0.051394,97321.0,97319.0,0.3608]
[1734800453709,0.051394,97321.0,97319.0,0.3618]
[1734800453917,0.074,97338.0,97319.0,0.3618]
[1734800454114,0.0801,97337.0,97336.0,0.3608]
[1734800455313,0.0801,97337.0,97336.0,0.3618]
[1734800455717,0.131485,97337.0,97336.0,0.3618]
[1734800456223,0.0801,97337.0,97336.0,0.3618]
[1734800456427,0.08211218,97337.0,97336.0,0.3618]
[1734800456817,0.08211218,97337.0,97336.0,0.3608]
[1734800457022,0.08111218,97337.0,97336.0,0.3608]
[1734800457224,0.00201218,97337.0,97336.0,0.3608]
[1734800457423,0.00201218,97337.0,97336.0,0.3618]
[1734800457630,0.00247854,97337.0,97336.0,0.3618]
[1734800458525,0.00247854,97337.0,97336.0,0.3608]
[1734800458928,0.00269518,97337.0,97336.0,0.3608]
[1734800459327,0.00169518,97337.0,97336.0,0.3608]
[1734800459924,0.00169518,97337.0,97336.0,0.3618]
[1734800460225,0.00269518,97337.0,97336.0,0.3618]
[1734800460426,0.00269518,97337.0,97336.0,0.3608]
[1734800460630,0.05408018,97337.0,97336.0,0.3608]
[1734800461625,0.05139,97329.0,97327.0,0.3608]
[1734800461826,0.00169518,97328.0,97327.0,0.3608]
[1734800463229,0.00169518,97328.0,97327.0,0.3618]
[1734800463824,0.00269518,97328.0,97327.0,0.3608]
[1734800464232,0.01038231,97340.0,97339.0,0.051384]
[1734800464536,0.051376,97355.0,97347.0,0.05138]
[1734800464722,0.01038231,97354.0,97349.0,0.051379]
[1734800464924,0.01038231,97363.0,97355.0,0.051376]
[1734800465225,0.01038231,97362.0,97360.0,0.3608]
[1734800465427,0.01038231,97361.0,97360.0,0.3608]
[1734800466824,0.01038231,97361.0,97360.0,0.3618]
[1734800467134,0.01138231,97361.0,97360.0,0.3618]
[1734800468024,0.001,97361.0,97360.0,0.37225573]
[1734800468230,0.01034305,97364.0,97363.0,0.051372]
[1734800468429,0.01909545,97372.0,97371.0,0.051367]
[1734800468837,0.01034155,97379.0,97377.0,0.051364]
[1734800469035,0.01028222,97381.0,97378.0,0.412163]
[1734800469238,0.01028222,97382.0,97378.0,0.412163]
[1734800469437,0.01028222,97381.0,97378.0,0.412163]
[1734800469637,0.01028222,97382.0,97378.0,0.412163]
[1734800469841,0.01028222,97381.0,97378.0,0.412163]
[1734800470036,0.06164522,97380.0,97378.0,0.3608]
[1734800470242,0.06164522,97380.0,97378.0,0.002]
[1734800470243,0.051363,97380.0,97378.0,0.002]
[1734800470429,0.01903612,97379.0,97378.0,0.002]
[1734800470634,0.051368,97370.0,97369.0,0.3608]
[1734800470932,0.051371,97365.0,97364.0,0.24510585]
[1734800471134,0.01028222,97365.0,97364.0,0.24510585]
[1734800471328,0.01903612,97371.0,97364.0,0.24510585]
[1734800471532,0.05137,97366.0,97364.0,0.24510585]
[1734800471729,0.01028222,97365.0,97364.0,0.24510585]
[1734800471930,0.01903612,97365.0,97364.0,0.24510585]
[1734800472136,0.37983612,97365.0,97364.0,0.12480585]
[1734800472332,0.37983612,97365.0,97337.0,0.4366]
[1734800472333,0.051379,97350.0,97349.0,0.12480585]
[1734800472842,0.07041512,97350.0,97349.0,0.12480585]
[1734800473042,0.06166122,97350.0,97349.0,0.12480585]
[1734800473234,0.07041512,97350.0,97349.0,0.12480585]
[1734800473654,0.07047034,97350.0,97349.0,0.12480585]
[1734800473851,0.07047032,97350.0,97349.0,0.12480585]
[1734800474037,0.051383,97341.0,97337.0,0.3608]
[1734800474246,0.06173628,97341.0,97337.0,0.3608]
[1734800474448,0.06173628,97341.0,97325.0,0.051392]
[1734800474745,0.07047432,97341.0,97325.0,0.051392]
[1734800475042,0.07047432,97341.0,97335.0,0.3608]
[1734800475437,0.06173628,97341.0,97335.0,0.3608]
[1734800475834,0.01035328,97341.0,97335.0,0.3608]
[1734800476039,0.01035328,97341.0,97338.0,0.051385]
[1734800476449,0.001,97341.0,97340.0,0.00254094]
[1734800477348,0.001,97341.0,97340.0,0.00154094]
[1734800477532,0.001,97341.0,97340.0,0.00254094]
[1734800478031,0.052383,97341.0,97340.0,0.00254094]
[1734800478645,0.0704329,97341.0,97340.0,0.00254094]
[1734800479345,0.07043938,97341.0,97340.0,0.00154094]
[1734800479839,0.0704464,97341.0,97340.0,0.00154094]
[1734800480045,0.0704464,97341.0,97340.0,0.001]
[1734800480540,0.0190634,97341.0,97340.0,0.001]
[1734800481051,0.0704464,97341.0,97332.0,0.412188]
[1734800481252,0.051383,97341.0,97340.0,0.001]
[1734800481441,0.06168548,97341.0,97340.0,0.001]
[1734800481752,0.05138,97348.0,97340.0,0.3618]
[1734800482053,0.01901049,97347.0,97340.0,0.3618]
[1734800482347,0.01025653,97346.0,97340.0,0.3618]
[1734800482547,0.01025653,97345.0,97340.0,0.3618]
[1734800482733,0.01025653,97347.0,97340.0,0.3618]
[1734800482939,0.01025653,97346.0,97340.0,0.3618]
[1734800483147,0.079,97353.0,97340.0,0.3608]
[1734800483148,0.01025653,97345.0,97340.0,0.3608]
[1734800483342,0.051383,97342.0,97340.0,0.3608]
[1734800483548,0.01901049,97341.0,97332.0,0.3608]
[1734800483745,0.051388,97333.0,97332.0,0.3608]
[1734800484248,0.07039849,97333.0,97332.0,0.3608]
[1734800484450,0.06164453,97333.0,97332.0,0.3608]
[1734800484752,0.051388,97333.0,97332.0,0.3608]
[1734800485837,0.051383,97342.0,97332.0,0.3608]
[1734800486154,0.01025653,97341.0,97332.0,0.3608]
[1734800486353,0.051385,97338.0,97332.0,0.3608]
[1734800486954,0.00875396,97340.0,97333.0,0.051387]
[1734800487147,0.01927254,97342.0,97333.0,0.051387]
[1734800487349,0.01051858,97342.0,97333.0,0.051387]
[1734800487550,0.00875396,97349.0,97333.0,0.051387]
[1734800487744,0.00875396,97348.0,97333.0,0.051387]
[1734800488065,0.01901049,97350.0,97333.0,0.051387]
[1734800488246,0.051382,97344.0,97333.0,0.051387]
[1734800488947,0.06176837,97351.0,97332.0,0.3608]
[1734800489141,0.05138,97349.0,97332.0,0.3608]
[1734800489642,0.05138,97349.0,97341.0,0.3608]
[1734800489951,0.01038812,97353.0,97341.0,0.3608]
[1734800490253,0.051376,97355.0,97350.0,0.051378]
[1734800490953,0.051376,97355.0,97352.0,0.412177]
[1734800490954,0.01015858,97355.0,97352.0,0.412177]
[1734800491143,0.051373,97361.0,97352.0,0.412177]
[1734800491847,0.051375,97356.0,97352.0,0.3608]
[1734800492937,0.051377,97354.0,97352.0,0.3608]
[1734800493344,0.051377,97354.0,97352.0,0.3618]
[1734800495445,0.08858492,97367.0,97352.0,0.3618]
[1734800495637,0.051373,97361.0,97352.0,0.3618]
[1734800496041,0.0188458,97360.0,97352.0,0.3618]
[1734800496239,0.0188458,97366.0,97352.0,0.7216]
[1734800496451,0.12231748,97368.0,97364.0,0.3608]
[1734800496661,0.12231748,97368.0,97366.0,0.05137]
[1734800497556,0.12231748,97378.0,97368.0,0.051369]
[1734800497854,0.12231748,97378.0,97373.0,0.3608]
[1734800498058,0.17368148,97378.0,97373.0,0.3608]
[1734800498454,0.08884509,97380.0,97373.0,0.3608]
[1734800498750,0.01034509,97380.0,97373.0,0.3608]
[1734800498954,0.051361,97384.0,97376.0,0.051365]
[1734800499554,0.051361,97384.0,97382.0,0.3608]
[1734800500149,0.08915281,97389.0,97373.0,0.3618]
[1734800500349,0.051364,97377.0,97376.0,0.001]
[1734800500652,0.01890296,97377.0,97352.0,0.3608]
[1734800500852,0.051376,97356.0,97352.0,0.3608]
[1734800501455,0.051377,97354.0,97352.0,0.3608]
[1734800501650,0.051377,97352.0,97351.0,0.30563931]
[1734800501859,0.051377,97352.0,97346.0,0.36676717]
[1734800502055,0.41218,97347.0,97346.0,0.36676717]
[1734800502248,0.42235592,97347.0,97346.0,0.36676717]
[1734800502456,0.43114972,97347.0,97346.0,0.36676717]
[1734800502756,0.43114972,97347.0,97346.0,0.36152518]
[1734800503358,0.051392,97325.0,97323.0,0.00064]
[1734800503555,0.051393,97324.0,97317.0,0.36152]
[1734800503756,0.051393,97324.0,97317.0,0.3608]
[1734800504759,0.051393,97324.0,97317.0,0.3628]
[1734800505355,0.051392,97324.0,97317.0,0.3628]
[1734800506166,0.051392,97324.0,97317.0,0.3698]
[1734800506861,0.52316447,97333.0,97317.0,0.3698]
[1734800506862,0.051394,97322.0,97317.0,0.3698]
[1734800508167,0.51290623,97333.0,97317.0,0.3698]
[1734800508366,0.051394,97322.0,97317.0,0.3698]
[1734800508665,0.051395,97320.0,97317.0,0.3698]
[1734800508866,0.051395,97319.0,97317.0,0.3698]
[1734800509254,0.051395,97319.0,97317.0,0.009]
[1734800509452,0.051395,97319.0,97317.0,0.007]
[1734800509654,0.051398,97314.0,97312.0,0.00072445]
[1734800509855,0.051406,97299.0,97285.0,0.051413]
[1734800510053,0.051401,97308.0,97287.0,0.051412]
[1734800510257,0.51290623,97304.0,97281.0,0.3608]
[1734800510465,0.3608,97295.0,97281.0,0.3608]
[1734800510654,0.051413,97286.0,97281.0,0.3608]
[1734800510962,0.051415,97281.0,97276.0,0.00064]
[1734800511158,0.36132001,97284.0,97267.0,0.0103612]
[1734800511377,0.15210623,97280.0,97266.0,0.4376]
[1734800511561,0.051417,97278.0,97266.0,0.4362]
[1734800511761,0.15210623,97280.0,97266.0,0.4362]
[1734800511953,0.051421,97270.0,97266.0,0.4362]
[1734800512161,0.412218,97276.0,97266.0,0.4362]
[1734800512359,0.3608,97276.0,97266.0,0.4362]
[1734800513062,0.05142,97272.0,97266.0,0.4382]
[1734800513767,0.3608,97276.0,97266.0,0.4442]
[1734800513970,0.051422,97268.0,97266.0,0.4472]
[1734800514271,0.3608,97267.0,97266.0,0.011]
[1734800514570,0.3608,97267.0,97266.0,0.008]
[1734800514761,0.3608,97267.0,97266.0,0.011]
[1734800515072,0.051427,97259.0,97246.0,0.075]
[1734800515369,0.051428,97257.0,97246.0,0.075]
[1734800515865,0.051429,97255.0,97246.0,0.075]
[1734800516066,0.051435,97244.0,97235.0,0.00154261]
[1734800516266,0.051435,97244.0,97216.0,0.3608]
[1734800516567,0.3608,97245.0,97216.0,0.3608]
[1734800516771,0.051445,97226.0,97216.0,0.3608]
[1734800517368,0.0001052,97225.0,97216.0,0.3608]
[1734800517872,0.051448,97220.0,97211.0,0.0791]
[1734800518166,0.01026754,97225.0,97211.0,0.0791]
[1734800519065,0.051446,97223.0,97211.0,0.0791]
[1734800519272,0.051446,97223.0,97216.0,0.002]
[1734800519771,0.051449,97218.0,97216.0,0.002]
[1734800520272,0.051451,97212.0,97211.0,0.012]
[1734800521767,0.06174673,97212.0,97211.0,0.012]
[1734800522363,0.06174673,97212.0,97198.0,0.3608]
[1734800522875,0.20355923,97210.0,97193.0,0.051461]
[1734800523077,0.20355923,97210.0,97193.0,0.412261]
[1734800523377,0.051453,97210.0,97201.0,0.3608]
[1734800523873,0.001,97212.0,97211.0,0.051452]
[1734800524277,0.01062554,97225.0,97210.0,0.0742]
[1734800524570,0.0001052,97225.0,97224.0,0.3608]
[1734800526468,0.0001052,97225.0,97224.0,0.3618]
[1734800526779,0.0515502,97225.0,97224.0,0.3658]
[1734800527276,0.0515502,97225.0,97224.0,0.005]
[1734800529174,0.4123502,97225.0,97224.0,0.005]
[1734800530967,0.4277902,97225.0,97224.0,0.005]
[1734800534178,0.05145,97216.0,97210.0,0.0742]
[1734800534381,0.15210623,97220.0,97210.0,0.0742]
[1734800534673,0.37686521,97225.0,97210.0,0.0742]
[1734800534863,0.051448,97220.0,97210.0,0.125652]
[1734800535170,0.00062521,97225.0,97223.0,0.051445]
[1734800535370,0.0001052,97225.0,97223.0,0.051445]
[1734800536578,0.0001052,97225.0,97223.0,0.055445]
[1734800537482,0.06187387,97224.0,97223.0,0.004]
[1734800537982,0.06187387,97224.0,97223.0,0.005]
[1734800538171,0.07856007,97224.0,97223.0,0.005]
[1734800538779,0.43936007,97224.0,97223.0,0.006]
[1734800538978,0.3881109,97224.0,97223.0,0.004]
[1734800539278,0.44815786,97224.0,97223.0,0.004]
[1734800539976,0.18283786,97224.0,97223.0,0.004]
[1734800540481,0.196601,97224.0,97223.0,0.004]
[1734800541277,0.20686048,97224.0,97223.0,0.004]
[1734800541775,0.20686048,97224.0,97215.0,0.3608]
[1734800541981,0.051449,97216.0,97215.0,0.3568]
[1734800542179,0.051449,97216.0,97198.0,0.3608]
[1734800542180,0.051456,97205.0,97198.0,0.3608]
[1734800542378,0.035991,97204.0,97194.0,0.1830218]
[1734800542585,0.051457,97201.0,97194.0,0.1830218]
[1734800542767,0.101133,97201.0,97194.0,0.1830218]
[1734800543283,0.101133,97201.0,97189.0,0.24367831]
[1734800543483,0.101133,97201.0,97188.0,0.181464]
[1734800543678,0.102133,97201.0,97200.0,0.107]
[1734800543880,0.08532629,97201.0,97200.0,0.107]
[1734800544276,0.08537141,97201.0,97200.0,0.107]
[1734800544685,0.08537141,97201.0,97200.0,0.109]
[1734800544985,0.12420224,97201.0,97200.0,0.109]
[1734800545186,7.814e-05,97204.0,97200.0,0.109]
[1734800545386,7.814e-05,97204.0,97203.0,0.051456]
[1734800546282,0.00107814,97204.0,97203.0,0.051456]
[1734800546677,0.051457,97202.0,97201.0,0.0656]
[1734800546875,0.051457,97202.0,97200.0,0.102]
[1734800547282,0.096247,97202.0,97200.0,0.102]
[1734800547877,0.096247,97202.0,97201.0,0.002]
[1734800548485,0.097247,97202.0,97201.0,0.002]
[1734800548690,0.097247,97202.0,97200.0,0.108]
[1734800548901,0.096247,97202.0,97201.0,0.006]
[1734800549077,0.097247,97202.0,97201.0,0.006]
[1734800551091,0.097247,97202.0,97201.0,0.008]
[1734800552579,0.04579,97202.0,97201.0,0.008]
[1734800553588,0.36132001,97206.0,97204.0,0.051456]
[1734800553589,0.00052001,97206.0,97204.0,0.051456]
[1734800553891,0.06518562,97209.0,97208.0,0.051454]
[1734800554394,0.06531724,97209.0,97208.0,0.051454]
[1734800554890,0.00013162,97209.0,97208.0,0.051454]
[1734800555095,0.00013162,97209.0,97208.0,0.054454]
[1734800555994,0.20502711,97234.0,97208.0,0.415254]
[1734800556192,0.15358711,97235.0,97219.0,0.3608]
[1734800556490,0.15358711,97235.0,97222.0,0.051446]
[1734800556491,0.051441,97231.0,97222.0,0.051446]
[1734800556693,0.01023337,97230.0,97222.0,0.051446]
[1734800557291,0.00832569,97223.0,97222.0,0.051446]
[1734800557895,0.10048,97224.0,97222.0,0.051446]
[1734800558093,0.01069588,97237.0,97221.0,0.3608]
[1734800558394,0.01017587,97237.0,97236.0,0.051439]
[1734800558589,0.051434,97245.0,97236.0,0.051439]
[1734800558792,0.051435,97244.0,97240.0,0.051437]
[1734800559091,0.16389523,97248.0,97243.0,0.051435]
[1734800559290,0.00023,97244.0,97243.0,0.051435]
[1734800560186,0.00023,97244.0,97243.0,0.052435]
[1734800560495,0.15358711,97263.0,97261.0,0.051425]
[1734800560688,0.21491108,97280.0,97268.0,0.051422]
[1734800560996,0.21491108,97280.0,97268.0,0.412222]
[1734800561498,0.051412,97286.0,97276.0,0.051417]
[1734800562897,0.36132001,97287.0,97268.0,0.3608]
[1734800563098,0.42816801,97295.0,97285.0,0.051413]
[1734800563294,0.427648,97295.0,97286.0,0.3608]
[1734800563496,0.3608,97295.0,97286.0,0.3608]
[1734800563713,0.36132001,97308.0,97294.0,0.3608]
[1734800563887,0.37093758,97308.0,97294.0,0.3608]
[1734800564194,0.37093758,97308.0,97299.0,0.051405]
[1734800564902,0.051395,97318.0,97302.0,0.051404]
[1734800565204,0.009,97295.0,97294.0,0.3608]
[1734800565502,0.009,97295.0,97294.0,0.412208]
[1734800565698,0.0514,97309.0,97294.0,0.412208]
[1734800566003,0.009,97308.0,97299.0,0.001]
[1734800566192,0.009,97308.0,97299.0,0.052405]
[1734800566392,0.36140001,97315.0,97299.0,0.051405]
[1734800566595,0.3608,97315.0,97302.0,0.001]
[1734800567903,0.009,97309.0,97308.0,0.051401]
[1734800568606,0.00052001,97315.0,97302.0,0.3608]
[1734800568795,0.01033166,97320.0,97319.0,0.051395]
[1734800569000,0.051388,97333.0,97319.0,0.051395]
[1734800569201,0.24149,97330.0,97319.0,0.051395]
[1734800569702,0.25173815,97330.0,97320.0,0.051394]
[1734800570104,0.01024815,97330.0,97326.0,0.051391]
[1734800570307,0.36140001,97336.0,97319.0,0.001]
[1734800570491,0.3608,97336.0,97335.0,0.051386]
[1734800570899,0.00052001,97343.0,97342.0,0.051383]
[1734800571098,0.051369,97369.0,97356.0,0.051375]
[1734800571303,0.051369,97369.0,97337.0,0.3608]
[1734800571304,0.01544,97366.0,97350.0,0.3608]
[1734800571499,0.01544,97366.0,97358.0,0.051374]
[1734800571702,0.01544,97366.0,97350.0,0.3608]
[1734800571703,0.066811,97366.0,97353.0,0.051377]
[1734800571897,0.01544,97366.0,97356.0,0.051375]
[1734800572291,0.06681,97366.0,97356.0,0.001]
[1734800572790,0.051374,97358.0,97356.0,0.001]
[1734800572997,0.051376,97356.0,97341.0,0.051383]
[1734800573202,0.051376,97356.0,97353.0,0.001]
[1734800574806,0.051381,97346.0,97319.0,0.3608]
[1734800574997,0.3608,97342.0,97335.0,0.051386]
[1734800575700,0.051384,97340.0,97326.0,0.051391]
[1734800575900,0.051385,97338.0,97326.0,0.051391]
[1734800576094,0.051388,97333.0,97326.0,0.051391]
[1734800577004,0.051389,97331.0,97318.0,0.051395]
[1734800577501,0.36132001,97332.0,97315.0,0.00154124]
[1734800577704,0.3608,97332.0,97318.0,0.051395]
[1734800577897,0.0669,97331.0,97326.0,0.001]
[1734800578303,0.3608,97329.0,97315.0,0.00154124]
[1734800578607,0.1326,97328.0,97324.0,0.001]
[1734800579109,0.18399,97328.0,97326.0,0.001]
[1734800579500,0.00010277,97327.0,97326.0,0.001]
[1734800580607,0.36090277,97327.0,97326.0,0.001]
[1734800581301,0.36090277,97327.0,97325.0,0.051391]
[1734800581608,0.36090277,97327.0,97324.0,0.001]
[1734800581803,0.051394,97322.0,97316.0,0.051396]
[1734800582007,0.051396,97317.0,97315.0,0.00154124]
[1734800582408,0.36132001,97319.0,97296.0,0.3608]
[1734800582599,0.3608,97311.0,97303.0,0.051403]
[1734800582800,0.3608,97311.0,97304.0,0.051403]
[1734800583202,0.051404,97302.0,97296.0,0.412207]
[1734800583610,0.36132001,97303.0,97296.0,0.051407]
[1734800583911,8.895e-05,97302.0,97289.0,0.3608]
[1734800584114,8.895e-05,97302.0,97288.0,0.051411]
[1734800584115,0.051409,97293.0,97288.0,0.051411]
[1734800584306,0.051409,97292.0,97288.0,0.051411]
[1734800584510,0.36140001,97295.0,97291.0,0.051409]
[1734800584709,0.3608,97295.0,97291.0,0.051409]
[1734800584913,0.3608,97295.0,97283.0,0.00154174]
[1734800585115,0.051408,97294.0,97283.0,0.00154174]
[1734800585307,0.009,97293.0,97291.0,0.051409]
[1734800585811,8.895e-05,97302.0,97301.0,0.051404]
[1734800586719,0.3608,97332.0,97330.0,0.051389]
[1734800586905,0.051389,97331.0,97322.0,0.051393]
[1734800587212,0.3608,97332.0,97330.0,0.051389]
[1734800587906,0.3698,97332.0,97330.0,0.052389]
[1734800588311,0.009,97332.0,97330.0,0.052389]
[1734800588612,0.3608,97345.0,97344.0,0.051382]
[1734800589404,0.3608,97359.0,97330.0,0.052389]
[1734800589405,0.37121765,97359.0,97336.0,0.3608]
[1734800589617,0.37121765,97359.0,97354.0,0.051376]
[1734800589912,0.3608,97359.0,97357.0,0.051375]
[1734800590114,0.15223138,97380.0,97344.0,0.3608]
[1734800590115,0.0082575,97367.0,97366.0,0.05137]
[1734800590303,0.1842095,97385.0,97366.0,0.05137]
[1734800590510,0.19439104,97385.0,97383.0,0.051361]
[1734800590914,0.0082575,97393.0,97374.0,0.3608]
[1734800591120,0.3608,97394.0,97385.0,0.05136]
[1734800591318,0.00828907,97395.0,97387.0,0.051359]
[1734800591615,0.00828907,97395.0,97390.0,0.051357]
[1734800591821,0.051355,97396.0,97391.0,0.051357]
[1734800593305,0.009,97394.0,97391.0,0.051357]
[1734800593924,0.0675,97399.0,97395.0,0.051355]
[1734800594109,0.009,97396.0,97395.0,0.051355]
[1734800594518,0.0675,97399.0,97395.0,0.051355]
[1734800595122,0.1,97400.0,97395.0,0.052355]
[1734800595823,0.009,97396.0,97395.0,0.053355]
[1734800597022,0.009,97396.0,97395.0,0.002]
[1734800597222,0.051353,97399.0,97395.0,0.001]
[1734800597418,0.051354,97396.0,97395.0,0.001]
[1734800597821,0.060354,97396.0,97395.0,0.002]
[1734800598015,0.009,97396.0,97370.0,0.15223138]
[1734800598228,0.009,97396.0,97392.0,0.051356]
[1734800598523,0.009,97399.0,97398.0,0.051353]
[1734800599320,0.01,97399.0,97398.0,0.051353]
[1734800599518,0.01,97399.0,97395.0,0.002]
[1734800599914,0.001,97399.0,97395.0,0.002]
[1734800600229,0.009,97396.0,97395.0,0.001]
[1734800600528,0.001,97399.0,97375.0,0.051365]
[1734800600723,0.01,97399.0,97395.0,0.001]
[1734800600916,0.01,97399.0,97395.0,0.002]
[1734800601431,0.0201583,97399.0,97395.0,0.002]
[1734800601620,0.001,97399.0,97395.0,0.001]
[1734800601820,0.01,97399.0,97398.0,0.051353]
[1734800603215,0.01,97399.0,97398.0,0.052353]
[1734800603718,0.001,97399.0,97398.0,0.052353]
[1734800603926,0.01,97399.0,97398.0,0.053353]
[1734800605316,0.3708,97399.0,97398.0,0.002]
[1734800605521,0.422153,97399.0,97398.0,0.002]
[1734800606221,0.3708,97399.0,97398.0,0.002]
[1734800607119,0.01,97399.0,97398.0,0.002]
[1734800609629,0.01,97399.0,97372.0,0.3608]
[1734800609933,0.3608,97382.0,97372.0,0.3608]
[1734800610123,0.3608,97382.0,97378.0,0.051363]
[1734800610319,0.3608,97382.0,97364.0,0.00154054]
[1734800610527,0.051367,97372.0,97365.0,0.051371]
[1734800610721,0.3608,97374.0,97365.0,0.051371]
[1734800611030,0.3608,97374.0,97364.0,0.00154054]
[1734800611031,0.05137,97366.0,97364.0,0.00154054]
[1734800611919,0.37090281,97374.0,97364.0,0.00154054]
[1734800612433,0.3608,97374.0,97364.0,0.00254054]
[1734800612726,0.051362,97381.0,97364.0,0.00254054]
[1734800612931,0.002,97366.0,97365.0,0.051371]
[1734800614322,0.011,97366.0,97365.0,0.052371]
[1734800614530,0.009,97366.0,97365.0,0.052371]
[1734800615539,0.011,97366.0,97365.0,0.052371]
[1734800615722,0.009,97366.0,97365.0,0.052371]
[1734800616224,0.002,97366.0,97365.0,0.051371]
[1734800616529,0.011,97366.0,97365.0,0.052371]
[1734800616726,0.011,97366.0,97365.0,0.352371]
[1734800617029,0.00828218,97391.0,97367.0,0.051369]
[1734800617225,0.00828218,97390.0,97389.0,0.051358]